Cogmind - Beta 13 X2 @@@ ROGUE MODE // 2024.02.06 @ 20:32:26 Player: Minty Result: Destroyed by DAS Turret with DAS Cannon Performance ------------- Evolutions (0) 0 Regions Visited (3) 600 Robots Destroyed (13) 65 Value Destroyed (266) 266 Prototype IDs (28) 560 Alien Tech Used (0) 0 Bonus (50) 50 TOTAL SCORE: 1541 Bonus ------- Follower Combat Kills 35 Aligned with FarCom 300 Friendly Fire -285 Cogmind --------- Core Integrity 0/250 Matter 150/300 Energy 42/100 System Corruption 0% Temperature Cool (0) Movement Core (50) Location -10/Exiles Parts ------- > --- POWER (1) -------- (None) > --- PROPULSION (2) --- (None) > --- UTILITY (2) ------ EX Chip 1 > --- WEAPON (2) ------- (None) > --- INVENTORY (5) ---- Small Storage Unit YOLO Cannon AWS/Gauss Peak State ------------ > --- POWER ------------ Cold Fusion Reactor > --- PROPULSION ------- Light Treads Light Treads > --- UTILITY ---------- Huge Storage Unit EX Chip 1 > --- WEAPON ----------- YOLO Cannon > --- INVENTORY -------- Ion Engine Ion Engine Light Nuclear Core Small Storage Unit Compact Matter Pod Compact Matter Pod Cloak of Protection Light Armor Plating Medium Laser AWS/Gauss Grenade Launcher Grenade Launcher Grenade Launcher Grenade Launcher Grenade Launcher [Rating: 35] Favorites ----------- Power Ion Engine Engine Ion Engine Reactor Cold Fusion Reactor Propulsion Light Treads Treads Light Treads Leg Aluminum Leg Utility Huge Storage Unit Device Cloak of Protection Storage Huge Storage Unit Hackware EX Chip 1 Protection Light Armor Plating Weapon Grenade Launcher Energy Gun Medium Laser Energy Cannon YOLO Cannon Ballistic Gun AWS/Gauss Launcher Grenade Launcher Build | -11 -10 -10 -10 ------- Run | Yrd Mat Min Exi Slots Evolved . | . . . . Power . | . . . . Propulsion . | . . . . Utility . | . . . . Weapon . | . . . . Parts Attached 21 | 3 9 . 9 Power 1 | . . . 1 Engine . | . . . . Core . | . . . . Reactor 1 | . . . 1 Propulsion 3 | 2 1 . . Treads 3 | 2 1 . . Leg . | . . . . Wheel . | . . . . Hover . | . . . . Flight . | . . . . Utility 4 | . 2 . 2 Device 1 | . . . 1 Storage 1 | . 1 . . Processor . | . . . . Hackware 1 | . . . 1 Protection 1 | . 1 . . Artifact . | . . . . Weapon 13 | 1 6 . 6 Energy Gun 3 | 1 2 . . Energy Cannon 2 | . . . 2 Ballistic Gun 2 | . . . 2 Ballistic Cannon . | . . . . Launcher 6 | . 4 . 2 Special Weapon . | . . . . Impact Weapon . | . . . . Slashing Weapon . | . . . . Piercing Weapon . | . . . . Special Melee Weapon . | . . . . Unidentified Prototypes 1 | . . . 1 Parts Lost 3 | . . . 3 Power 1 | . . . 1 Propulsion 2 | . . . 2 Utility . | . . . . Weapon . | . . . . Highest Loss Streak 3 | . . . 3 To Critical Strikes 2 | . . . 2 Average Slot Usage (%) 95 | . 94 100 92 Engine 13 | . 14 14 12 Treads 27 | . 27 28 26 Device 1 | . . . 4 Storage 13 | . 14 14 13 Protection 10 | . 8 14 8 Energy Gun 4 | . 15 . . Ballistic Gun 1 | . . . 3 Launcher 20 | . 12 28 19 Naked Turns . | . . . . Heaviest Build 106 | 14 94 94 106 Greatest Support 40 | 40 40 40 40 Greatest Overweight (x) 2 | . 2 2 2 Average Overweight (x) 1 | . . 2 1 Largest Inventory Capacity 25 | 8 25 25 25 Average Capacity 21 | 8 15 25 23 Most Carried 22 | 7 9 11 22 Average Carried 11 | 6 8 10 14 Final Capacity 25 | 8 25 25 5 Final Carried 11 | 6 9 11 5 Class Distribution -------------------- 100% | Mutant Dominant Class ---------------- Mutant | -10/Materials Mutant | -10/Mines Mutant | -10/Exiles Resources | -11 -10 -10 -10 ----------- Run | Yrd Mat Min Exi Matter Collected 400 | 230 90 80 . Remotely . | . . . . Salvage Created 289 | 89 162 . 38 Parts 20 | 2 17 . 1 Haulers Intercepted . | . . . . Recyclers Shooed . | . . . . Parts Field Recycled . | . . . . Retrieved Matter . | . . . . Parts Self-Destructed . | . . . . Prevented . | . . . . Kills | -11 -10 -10 -10 ------- Run | Yrd Mat Min Exi Combat Hostiles Destroyed 12 | . 6 . 6 AOE 12 | . 6 . 6 Classes Destroyed 8 | 2 5 . 1 Worker 1 | . 1 . . Builder 1 | . 1 . . Tunneler 1 | 1 . . . Recycler 1 | 1 . . . Watcher 2 | . 2 . . Swarmer 3 | . 3 . . Grunt 4 | . 3 . 1 Assembled 6 | . . . 6 Best Kill Streak 6 | 2 4 . 6 Combat Bots Only 6 | . 4 . 6 Max Kills in Single Turn 3 | 1 3 . 3 Gunslinging . | . . . . Exploded 3 | . 2 . 3 Melee . | . . . . Uniques/NPCs Destroyed 1 | . . . 1 EX-BIN (-10/Exiles) Combat | -11 -10 -10 -10 -------- Run | Yrd Mat Min Exi Hostile Shots Fired 65 | . 23 . 42 Missed 16 | . 6 . 10 Damage Taken 1028 | . 219 . 809 Core 251 | . 37 . 214 Absorbed by Shields . | . . . . Core Remaining (%) 100 | 100 . . . Volleys Fired 29 | 5 15 . 9 Largest 2 | 2 2 . 2 Hottest 100 | 100 100 . 100 Shots Fired 53 | 10 30 . 13 Gun 32 | 10 22 . . Cannon 5 | . . . 5 Launcher 16 | . 8 . 8 Special . | . . . . Kinetic . | . . . . Thermal 37 | 10 22 . 5 Explosive 16 | . 8 . 8 Electromagnetic . | . . . . Robot Hit Streak 16 | 6 8 . 16 Robot Miss Streak 2 | 2 2 . 1 Penetration Max . | . . . . Secondary Targets . | . . . . Shots Hit Robots 27 | 7 9 . 11 Core Hits 28 | 2 12 1 13 Critical Kills . | . . . . Critical Parts Destroyed . | . . . . Critical Strikes 2 | 2 . . . Burn 2 | 2 . . . Melee Attacks . | . . . . Impact . | . . . . Slashing . | . . . . Piercing . | . . . . Sneak Attacks . | . . . . Combat Hostiles . | . . . . Follow-up Attacks . | . . . . Damage Inflicted 1031 | 87 418 1 525 Guns 164 | 87 77 . . Cannons 44 | . . . 44 Explosions 811 | . 341 . 470 Melee . | . . . . Ramming 12 | . . 1 11 Kinetic . | . . . . Thermal 239 | 87 77 . 75 Explosive 780 | . 341 . 439 Electromagnetic . | . . . . Impact . | . . . . Slashing . | . . . . Piercing . | . . . . Highest Corruption . | . . . . Average Corruption . | . . . . Corruption Purged . | . . . . Corruption Blocked . | . . . . Overload Shots . | . . . . Overflow Damage 10 | . . . 10 Projectiles . | . . . . Explosions . | . . . . Melee 10 | . . . 10 Knockbacks . | . . . . Impact . | . . . . Kinetic . | . . . . Secondary . | . . . . Self-Inflicted Damage 258 | . 62 . 196 Shots 9 | . 2 . 7 Rammed 2 | . . 1 1 Targets Rammed 2 | . . 1 1 Kicked . | . . . . Crushed . | . . . . Highest Temperature 383 | 156 383 . 40 Average Temperature 117 | 76 147 . 24 Received Heat Transfer 57 | . 57 . . Siege Activations . | . . . . Robots Corrupted . | . . . . Combat Hostiles . | . . . . Parts Fried . | . . . . Impact Corruptions 1 | . . . 1 Robots Melted 1 | 1 . . . Combat Hostiles . | . . . . Parts Melted . | . . . . Heat Transferred 789 | 407 222 . 160 Parts Sabotaged . | . . . . Parts Stolen . | . . . . Parts Stripped . | . . . . Power Chain Reactions . | . . . . Missiles Intercepted . | . . . . Alert | -11 -10 -10 -10 ------- Run | Yrd Mat Min Exi Peak Influence 379 | 10 379 69 . Initial 69 | . 6 69 . Average 127 | 6 225 56 . Maximum Alert Level 1 | . 1 . . Low Security (%) 75 | 100 42 100 . Level 1 24 | . 57 . . Level 2 . | . . . . Level 3 . | . . . . Level 4 . | . . . . Level 5 . | . . . . High Security . | . . . . Max Security . | . . . . Squads Dispatched 3 | . 3 . . Investigation 3 | . 3 . . Extermination . | . . . . Reinforcement . | . . . . Assault . | . . . . Garrison . | . . . . Intercept . | . . . . Searches Triggered . | . . . . Construction Impeded . | . . . . Haulers Reinforced . | . . . . Active Scanning Responses . | . . . . Cargo Convoy Interrupts . | . . . . Stealth | -11 -10 -10 -10 --------- Run | Yrd Mat Min Exi Distress Signals 1 | . 1 . . Communications Jammed . | . . . . Distress Signals . | . . . . Times Spotted 19 | . 9 2 8 Peak Tracking Total 9 | . 5 2 9 Tactical Retreats . | . . . . Traps | -11 -10 -10 -10 ------- Run | Yrd Mat Min Exi Traps Triggered 1 | . 1 . . Indirectly . | . . . . Trap Hack Attempts . | . . . . Triggered . | . . . . Disarmed . | . . . . Reprogrammed . | . . . . Reused . | . . . . Traps Extracted . | . . . . Installed . | . . . . Triggered . | . . . . Machines | -11 -10 -10 -10 ---------- Run | Yrd Mat Min Exi Machines Disabled 6 | . 1 . 5 Max in Single Turn 2 | . 1 . 2 Machines Repaired . | . . . . Machines Dismantled . | . . . . Machines Sabotaged 1 | . 1 . . Overloaded Fab Kills . | . . . . Hacking | -11 -10 -10 -10 --------- Run | Yrd Mat Min Exi Machines Accessed 4 | . 3 . 1 Terminals 2 | . 2 . . Fabricators . | . . . . Repair Stations . | . . . . Recycling Units 1 | . 1 . . Scanalyzers . | . . . . Garrison Access . | . . . . Total Hacks 16 | . 15 . 1 Successful 11 | . 10 . 1 Failed 5 | . 5 . . Catastrophic . | . . . . Database Lockouts . | . . . . Manual 13 | . 12 . 1 Terminals 12 | . 12 . . Fabricators . | . . . . Repair Stations . | . . . . Recycling Units 3 | . 3 . . Scanalyzers . | . . . . Garrison Access . | . . . . Terminal Hacks 3 | . 2 . 1 Prototype ID Bank 2 | . 2 . . Derelict Proto ID Bank 1 | . . . 1 Fabricator Hacks . | . . . . Repair Station Hacks . | . . . . Recycling Unit Hacks 2 | . 2 . . Process 1 | . 1 . . Report Inventory 1 | . 1 . . Scanalyzer . | . . . . Garrison Access Hacks . | . . . . Unauthorized Hacks 6 | . 6 . . Terminals 5 | . 5 . . Assimilate 1 | . 1 . . Botnet 2 | . 2 . . Sabotage 2 | . 2 . . Fabricators . | . . . . Repair Stations . | . . . . Recycling Units 1 | . 1 . . Tunnel 1 | . 1 . . Scanalyzers . | . . . . Garrison Access . | . . . . Data Cores Recovered . | . . . . Used . | . . . . Hacking Detections 1 | . 1 . . Full Trace Events . | . . . . Feedback Events . | . . . . Feedback Blocked . | . . . . Robot Schematics Acquired . | . . . . Robots Built . | . . . . Authchips . | . . . . Time . | . . . . Total Robot Build Rating . | . . . . Part Schematics Acquired . | . . . . Parts Built . | . . . . Authchips . | . . . . Time . | . . . . Total Part Build Rating . | . . . . Parts Repaired . | . . . . Time . | . . . . Parts Recycled . | . . . . Recycled Matter 2 | . 2 . . Retrieved Matter . | . . . . Retrieved Components . | . . . . Parts Scanalyzed . | . . . . Part Schematics Acquired . | . . . . Parts Damaged . | . . . . Bothacking | -11 -10 -10 -10 ------------ Run | Yrd Mat Min Exi Used RIF Installer . | . . . . Robots Hacked . | . . . . Non-combat . | . . . . Combat . | . . . . Robot Hacks Applied . | . . . . Relay Couplers Released . | . . . . Fabnet Peak Effective % . | . . . . Robots Rewired . | . . . . Allies Hacked . | . . . . Hacks Repelled . | . . . . Allies | -11 -10 -10 -10 -------- Run | Yrd Mat Min Exi Total Allies 3 | . . 3 . Largest Group 3 | . . 3 3 Highest-Rated Group 40 | . . 40 40 Highest-Rated Ally 16 | . . 16 16 Total Orders . | . . . . Ally Attacks 31 | . . 6 25 Total Damage 257 | . . 76 181 Kills 3 | . . 1 2 Allies Corrupted . | . . . . Allies Melted . | . . . . Intel | -11 -10 -10 -10 ------- Run | Yrd Mat Min Exi Robot Analysis Total . | . . . . Derelict Logs Recovered . | . . . . Drone Launches . | . . . . Drone Recoveries . | . . . . Exploration | -11 -10 -10 -10 ------------- Run | Yrd Mat Min Exi Turns Passed 1663 | 50 462 553 598 Spaces Moved 556 | 20 186 172 178 Core 13 | . . . 13 Treads 543 | 20 186 172 165 Legs . | . . . . Wheels . | . . . . Hover . | . . . . Flight . | . . . . Fastest Speed 50 | 160 160 320 50 Average Speed 269 | 160 206 320 298 Slowest Speed 320 | 160 320 320 320 Overloaded Moves . | . . . . Propulsion Burnouts . | . . . . Robots Hopped . | . . . . Cave-ins Triggered . | . . . . Exploration Rate (%) 33 | 3 40 46 44 Regions Visited 3 Branch Regions 2 Pre-discovered Areas 1 | . 1 . . Known Exits Taken . | . . . . Unknown Exits Taken 3 | 1 1 1 . Scrap Searched . | . . . . Spaces Dug . | . . . . Terrain Destroyed 101 | . 67 . 34 Melee . | . . . . Projectile . | . . . . AOE 101 | . 67 . 34 Terrain Rammed . | . . . . Walls Destroyed . | . . . . Machines Disabled . | . . . . Actions | -11 -10 -10 -10 --------- Run | Yrd Mat Min Exi Total 667 | 29 237 174 227 Wait 9 | . 7 . 2 Move 553 | 19 185 171 178 Hop . | . . . . Pick Up 22 | . 12 2 8 Fast Attach 5 | . 2 . 3 Attach 10 | 2 2 . 6 Detach 11 | 2 . . 9 Swap 6 | 1 5 . . Drop 20 | . 9 . 11 Fire 29 | 5 15 . 9 Melee . | . . . . Ram . | . . . . Kick . | . . . . Crush 2 | . . 1 1 Escape Stasis . | . . . . Rewire . | . . . . Trap . | . . . . Miscellaneous . | . . . . Route ------- -11/Scrapyard -10/Materials -10/Mines (discovered 2 exits: [*Mat] / *Exi) -10/Exiles History --------- Turn | Location | Event 18 | -11/Scrapyard | Discovered new exit (range 3) 51 | -11/Scrapyard | Entered Materials 323 | -10/Materials | Build established: Mutant 472 | -10/Materials | Discovered new exit (range 7) 513 | -10/Materials | Entered Mines 632 | -10/Mines | Discovered new exit (range 10) 874 | -10/Mines | Assisted by bots powering up and referring to "LRC-V3" 1047 | -10/Mines | Deemed a non-threat by the Exiles lab entrance 1050 | -10/Mines | Discovered new exit (range 5) 1066 | -10/Mines | Entered Exiles 1066 | -10/Exiles | Accompanied by 3 allies 1156 | -10/Exiles | Met 8R-AWN 1210 | -10/Exiles | Met EX-HEX 1293 | -10/Exiles | Met EX-BIN 1332 | -10/Exiles | Aligned with FarCom system 1335 | -10/Exiles | Given EX-Vault access code 1412 | -10/Exiles | Opened EX-Vault 1435 | -10/Exiles | Found Cloak of Protection 1447 | -10/Exiles | Found AWS/Gauss 1452 | -10/Exiles | Found YOLO Cannon 1520 | -10/Exiles | Warned to stay clear of 0b10 Research branches 1559 | -10/Exiles | Attacked by the Exiles 1563 | -10/Exiles | Allies destroyed EX-BIN 1640 | -10/Exiles | Lost 3 allies 1646 | -10/Exiles | Core integrity fell below 50% 1660 | -10/Exiles | Core integrity fell below 20% 1664 | -10/Exiles | Destroyed by DAS Turret with DAS Cannon Last Messages --------------- 01647_ HV Slug penetrates Wall. 01649_ Dropped YOLO Cannon. 01650_ Penetrated by HV Slug. 01650_ HV Slug penetrates Wall. 01650_ Penetrated by HV Slug. 01650_ HV Slug penetrates FarCom Aligner. 01651_ Acquired YOLO Cannon. 01652_ Penetrated by HV Slug. 01652_ HV Slug penetrates FarCom Aligner. 01652_ Penetrated by HV Slug. 01652_ HV Slug penetrates FarCom Aligner. 01652_ Dropped AWS/Gauss. 01654_ Acquired AWS/Gauss. 01654_ Penetrated by HV Slug. 01654_ HV Slug penetrates FarCom Aligner. 01656_ Dropped Ion Engine. 01656_ Penetrated by HV Slug. 01656_ HV Slug penetrates FarCom Aligner. 01659_ Penetrated by HV Slug. 01659_ HV Slug penetrates Earth. Map ----- +----------------------------------------------------+ | ????????????????????#""X" #??????????????? | | ????????????????????#" #??????????????? | | ????????????????????#" ## #??#???????????? | | ????????????????????#""""""?# #?#""######????? | | ????????????????????##"###??# #?# """"""#????? | | ????????????????????? ??????# ##" """"""#????? | | ????????????????????????????# # # """"""#????? | | ???????????????????????????## ##" " """"#????? | | ???????????????????????????#" """"#????? | | ???????????????????????????#" """#????? | | ???????????????????????????#" """#????? | | ???????????????????????????#" """#????? | | ???????????????????????????#" ""#????? | | ???????????????????????????#" """## """ | | ???????????????????????????## """""" | | ???????????????????????????# *][ " ""#??? | | ???????????????????????????# ! * """ # | | ???????????????????????????# = * #????? | | ???????????????????????????# ! " #????? | | ???????????????????????????# #####????? | | ??????????????????????????## #????????? | | ?????????????????????###### " ###????????? | | ???????????????????###"""""" # ##??????????? | | ??????????????????"""""" " "" #??########## | | ?????????????? "" """ % " ####""""""""" | | ?????????????? " " @ " """ """ | | ????????????? "" " | | ??????????? " " | | ??????????? " | | ??????????? " | | ???????????? | | ???????????? """" | | ???????????? ;;####""" | | ????????????? ;; #??#####""" | | ????????????? " ;; ##??????##""" | | ?????????????? """####?????????#"""" | | ?????????????? ""?????????????#"" | | ???????????????? ?????????????????"""" | | ??????????????????????????????????? | | ?????????????????????????????????? | | ?????????????????????????????????? | | ????????????????????????????????? | | ????????????????????????????????? " | | ????????????????????????????????? "" """ | | ???????????????????????????????????"" " " ""#" | | ????????????????????????????????????##""" ""??#""" | | ????????????????????????????????????????"""????### | | ?????????????????????????????????????????????????? | | ?????????????????????????????????????????????????? | | ?????????????????????????????????????????????????? | +----------------------------------------------------+ Best States ------------- Heat Dissipation 25 Energy Generation 17 Energy Capacity 250 Matter Stores 300 Matter Capacity 300 Sight Range 16 Terrain Scan Density 10 Cloak Strength 5 Armor Coverage 150 Evasion (%) 50 Recoil Reduction 2 Offensive Hacking 7 Item Schematics ----------------- None Robot Schematics ------------------ None Fabricated ------------ Nothing Alien Tech Used ----------------- None Achievements -------------- None Challenges ------------ None Game ------ Seed PointyHellfireProtection Manual? 0 Play Time 00:09:38 Cumulative 643.5 hours Start 2024.02.06 @ 20:25:28 End 2024.02.06 @ 20:32:26 Sessions 1 Manual Loads 0 Difficulty Rogue Special Mode None Game No. 625 Rogue 352 Adventurer 123 Explorer 150 Win Type - Total 25 Types 19/0/4/1/0/0/0/1/0 Lore% 80 Gallery% 91 Achievement% 76 Wizard Run 0 Options --------- ASCII 0 Keyboard 1 Movement Numpad Keybinds 0 Fullscreen 2 Font 18/X11Bold Map View 76x50 Zoom Use 3% Tactical HUD 1 Map Filters NONE Filters NONE Steam 1 RUN: 056f60c9-dd10-4fbb-a1bc-9be3c93d7d60